fUSD/lending_fUSD_20240503
["ID","MTS","AMOUNT","RATE_DAILY","PERIOD"]
[325358651,1714750249802,-500.0,0.00041095,30]
[325358653,1714750249812,-1577.72,0.00041095,30]
[325358655,1714750249822,-500.0,0.00041095,30]
[325358658,1714750249832,-1737.41,0.00041095,30]
[325358660,1714750249841,-501.3139112,0.00041095,30]
[325358662,1714750249851,-500.0,0.00041095,30]
[325358664,1714750249860,-500.0,0.00041095,30]
[325358666,1714750249870,-500.0,0.00041095,30]
[325358668,1714750249880,-501.27513728,0.00041095,30]
[325358670,1714750249890,-500.0,0.00041095,30]
[325358672,1714750249900,-201.73590193,0.00041095,30]
[325358674,1714750249911,-631.03,0.00041095,30]
[325358676,1714750249921,-1358.88,0.00041095,30]
[325358678,1714750249932,-559.21,0.00041095,30]
[325358680,1714750249943,-500.0,0.00041095,30]
[325358682,1714750249953,-495.26752227,0.00041095,30]
[325358684,1714750249964,-500.0,0.00041095,30]
[325358687,1714750249975,-500.0,0.00041095,30]
[325358689,1714750249987,-500.0,0.00041095,30]
[325358691,1714750249998,-500.0,0.00041095,30]
[325358693,1714750250008,-500.0,0.00041095,30]
[325358695,1714750250019,-500.0,0.00041095,30]
[325358697,1714750250029,-262.44749368,0.00041095,30]
[325358699,1714750250040,-683.12,0.00041095,30]
[325358702,1714750250051,-500.0,0.00041095,30]
[325358704,1714750250061,-500.0,0.00041095,30]
[325358706,1714750250072,-500.0,0.00041095,30]
[325358708,1714750250083,-500.0,0.00041095,30]
[325358710,1714750250093,-500.0,0.00041095,30]
[325358712,1714750250104,-1648.79,0.00041095,30]
[325358714,1714750250115,-1579.73,0.00041095,30]
[325358717,1714750250126,-500.0,0.00041095,30]
[325358719,1714750250136,-500.0,0.00041095,30]
[325358721,1714750250147,-502.62465709,0.00041095,30]
[325358723,1714750250157,-500.0,0.00041095,30]
[325358725,1714750250167,-500.0,0.00041095,30]
[325358727,1714750250177,-716.99,0.00041095,30]
[325358729,1714750250188,-500.0,0.00041095,30]
[325358731,1714750250198,-413.48921738,0.00041095,30]
[325358733,1714750250209,-653.71,0.00041095,30]
[325358735,1714750250218,-1631.58,0.00041095,30]
[325358737,1714750250229,-802.35,0.00041095,30]
[325358739,1714750250239,-500.0,0.00041095,30]
[325358742,1714750250251,-1310.89,0.00041095,30]
[325358744,1714750250262,-677.13,0.00041095,30]
[325358746,1714750250272,-500.0,0.00041095,30]
[325358748,1714750250284,-500.0,0.00041095,30]
[325358750,1714750250297,-500.0,0.00041095,30]
[325358752,1714750250307,-830.25,0.00041095,30]
[325358754,1714750250318,-500.0,0.00041095,30]
[325358756,1714750250328,-500.0,0.00041095,30]
[325358758,1714750250339,-500.0,0.00041095,30]
[325358760,1714750250348,-765.45,0.00041095,30]
[325358762,1714750250358,-1045.71,0.00041095,30]
[325358764,1714750250370,-501.67127853,0.00041095,30]
[325358766,1714750250381,-500.0,0.00041095,30]
[325358768,1714750250391,-190.55469254,0.00041095,30]
[325358770,1714750250402,-500.0,0.00041095,30]
[325358772,1714750250412,-645.53,0.00041095,30]
[325358774,1714750250423,-288.97,0.00041095,30]
[325358777,1714750250433,-500.0,0.00041095,30]
[325358779,1714750250444,-2906.32,0.00041095,30]
[325358781,1714750250454,-500.0,0.00041095,30]
[325358783,1714750250466,-965.07,0.00041095,30]
[325358785,1714750250476,-990.81,0.00041095,30]
[325358787,1714750250488,-1549.5,0.00041095,30]
[325358789,1714750250499,-500.0,0.00041095,30]
[325358792,1714750250511,-500.0,0.00041095,30]
[325358794,1714750250521,-500.0,0.00041095,30]
[325358796,1714750250532,-500.0,0.00041095,30]
[325358798,1714750250543,-1445.71,0.00041095,30]
[325358800,1714750250554,-500.0,0.00041095,30]
[325358802,1714750250565,-500.0,0.00041095,30]
[325358804,1714750250575,-504.11900017,0.00041095,30]
[325358806,1714750250585,-500.0,0.00041095,30]
[325358808,1714750250595,-500.0,0.00041095,30]
[325358810,1714750250606,-1154.5,0.00041095,30]
[325358813,1714750250617,-1506.63,0.00041095,30]
[325358815,1714750250627,-500.0,0.00041095,30]
[325358817,1714750250637,-728.48,0.00041095,30]
[325358819,1714750250648,-4840.48,0.00041095,30]
[325358821,1714750250658,-500.0,0.00041095,30]
[325358823,1714750250668,-1695.85,0.00041095,30]
[325358825,1714750250679,-2182.66,0.00041095,30]
[325358827,1714750250689,-5480.32,0.00041095,30]
[325358829,1714750250700,-198.18236312,0.00041095,30]
[325358831,1714750250711,-526.22,0.00041095,30]
[325358833,1714750250721,-500.0,0.00041095,30]
[325358835,1714750250731,-4072.7,0.00041095,30]
[325358837,1714750250741,-500.0,0.00041095,30]
[325358839,1714750250751,-500.0,0.00041095,30]
[325358841,1714750250761,-1556.4,0.00041095,30]
[325358844,1714750250773,-1135.67,0.00041095,30]
[325358846,1714750250784,-500.0,0.00041095,30]
[325358848,1714750250794,-1014.56,0.00041095,30]
[325358850,1714750250805,-500.0,0.00041095,30]
[325358852,1714750250816,-500.0,0.00041095,30]
[325358854,1714750250826,-32891.4,0.00041095,30]
[325358856,1714750250837,-500.0,0.00041095,30]
[325358858,1714750250847,-1346.39,0.00041095,30]
[325358860,1714750250857,-1270.45,0.00041095,30]
[325358863,1714750250868,-500.0,0.00041095,30]
[325358865,1714750250878,-2566.39,0.00041095,30]
[325358867,1714750250888,-500.0,0.00041095,30]
[325358869,1714750250898,-666.52,0.00041095,30]
[325358871,1714750250909,-556.95,0.00041095,30]
[325358873,1714750250919,-500.0,0.00041095,30]
[325358875,1714750250930,-500.0,0.00041095,30]
[325358877,1714750250940,-500.0,0.00041095,30]
[325358879,1714750250951,-500.0,0.00041095,30]
[325358881,1714750250961,-1496.18,0.00041095,30]
[325358883,1714750250971,-500.0,0.00041095,30]
[325358885,1714750250982,-500.0,0.00041095,30]
[325358887,1714750250992,-2035.73,0.00041095,30]
[325358889,1714750251003,-500.0,0.00041095,30]
[325358891,1714750251013,-5229.83,0.00041095,30]
[325358893,1714750251024,-2994.01,0.00041095,30]
[325358896,1714750251034,-500.0,0.00041095,30]
[325358898,1714750251045,-1365.99,0.00041095,30]
[325358900,1714750251055,-1299.05,0.00041095,30]
[325358902,1714750251065,-500.0,0.00041095,30]
[325358904,1714750251075,-500.0,0.00041095,30]
[325358906,1714750251085,-505.04045667,0.00041095,30]
[325358908,1714750251095,-2207.14,0.00041095,30]
[325358910,1714750251105,-500.0,0.00041095,30]
[325358912,1714750251115,-500.0,0.00041095,30]
[325358914,1714750251126,-794.08,0.00041095,30]
[325358916,1714750251136,-500.0,0.00041095,30]
[325358918,1714750251146,-500.0,0.00041095,30]
[325358920,1714750251156,-2728.19,0.00041095,30]
[325358923,1714750251167,-500.0,0.00041095,30]
[325358925,1714750251176,-500.0,0.00041095,30]
[325358927,1714750251186,-12395.6,0.00041095,30]
[325358929,1714750251196,-500.0,0.00041095,30]
[325358931,1714750251206,-259.41163307,0.00041095,30]
[325358933,1714750251217,-1961.4,0.00041095,30]
[325358935,1714750251227,-789.75,0.00041095,30]
[325358937,1714750251238,-500.0,0.00041095,30]
[325358939,1714750251250,-500.0,0.00041095,30]
[325358941,1714750251260,-500.0,0.00041095,30]
[325358943,1714750251270,-500.0,0.00041095,30]
[325358946,1714750251281,-3071.22,0.00041095,30]
[325358948,1714750251294,-1329.91,0.00041095,30]
[325358950,1714750251304,-1489.98,0.00041095,30]
[325358952,1714750251315,-500.0,0.00041095,30]
[325358954,1714750251325,-4404.95,0.00041095,30]
[325358956,1714750251336,-2932.85,0.00041095,30]
[325358958,1714750251345,-564.01,0.00041095,30]
[325358960,1714750251355,-3170.37,0.00041095,30]
[325358962,1714750251367,-1496.38,0.00041095,30]
[325358964,1714750251378,-1039.16,0.00041095,30]
[325358966,1714750251388,-500.0,0.00041095,30]
[325358968,1714750251399,-500.0,0.00041095,30]
[325358970,1714750251410,-500.0,0.00041095,30]
[325358972,1714750251421,-3198.86,0.00041095,30]
[325358974,1714750251431,-8365.5,0.00041095,30]
[325358976,1714750251441,-503.02,0.00041095,30]
[325358979,1714750251451,-1319.83,0.00041095,30]
[325358981,1714750251463,-500.0,0.00041095,30]
[325358983,1714750251473,-500.0,0.00041095,30]
[325358985,1714750251485,-500.0,0.00041095,30]
[325358987,1714750251495,-2264.03,0.00041095,30]
[325358989,1714750251506,-1464.47,0.00041095,30]
[325358991,1714750251516,-500.0,0.00041095,30]
[325358993,1714750251527,-500.0,0.00041095,30]
[325358995,1714750251538,-500.0,0.00041095,30]
[325358998,1714750251548,-500.0,0.00041095,30]
[325359000,1714750251558,-45807.96,0.00041095,30]
[325359002,1714750251568,-2336.61,0.00041095,30]
[325359004,1714750251579,-500.0,0.00041095,30]
[325359006,1714750251589,-500.0,0.00041095,30]
[325359008,1714750251599,-379.06047475,0.00041095,30]
[325359010,1714750251610,-7727.04,0.00041095,30]
[325359012,1714750251620,-517.79303433,0.00041095,30]
[325359015,1714750251631,-500.0,0.00041095,30]
[325359017,1714750251640,-896.46,0.00041095,30]
[325359019,1714750251650,-1951.53,0.00041095,30]
[325359021,1714750251660,-510.75483096,0.00041095,30]
[325359023,1714750251670,-500.0,0.00041095,30]
[325359025,1714750251681,-500.0,0.00041095,30]
[325359027,1714750251691,-500.0,0.00041095,30]
[325359029,1714750251701,-500.0,0.00041095,30]
[325359031,1714750251712,-500.0,0.00041095,30]
[325359033,1714750251722,-500.0,0.00041095,30]
[325359035,1714750251733,-11302.99,0.00041095,30]
[325359037,1714750251744,-806.42,0.00041095,30]
[325359039,1714750251754,-500.0,0.00041095,30]
[325359041,1714750251765,-1115.18,0.00041095,30]
[325359044,1714750251776,-4671.2,0.00041095,30]
[325359046,1714750251786,-1070.99,0.00041095,30]
[325359048,1714750251796,-500.0,0.00041095,30]
[325359050,1714750251807,-500.0,0.00041095,30]
[325359052,1714750251817,-486.51989776,0.00041095,30]
[325359054,1714750251827,-924.9,0.00041095,30]
[325359056,1714750251837,-500.0,0.00041095,30]
[325359058,1714750251848,-1716.37,0.00041095,30]
[325359060,1714750251858,-500.0,0.00041095,30]
[325359062,1714750251869,-500.0,0.00041095,30]
[325359064,1714750251879,-2780.39,0.00041095,30]
[325359066,1714750251889,-500.0,0.00041095,30]
[325359069,1714750251899,-500.0,0.00041095,30]
[325359070,1714750251910,-500.0,0.00041095,30]
[325359071,1714750251922,-761.23,0.00041095,30]
[325359072,1714750251933,-4710.76,0.00041095,30]
[325359073,1714750251944,-1194.37,0.00041095,30]
[325359074,1714750251955,-500.0,0.00041095,30]
[325359075,1714750251967,-2815.72,0.00041095,30]
[325359076,1714750251978,-500.0,0.00041095,30]
[325359077,1714750251992,-500.0,0.00041095,30]
[325359078,1714750252003,-500.0,0.00041095,30]
[325359079,1714750252016,-500.0,0.00041095,30]
[325359081,1714750252029,-500.0,0.00041095,30]
[325359083,1714750252042,-500.0,0.00041095,30]
[325359085,1714750252055,-500.0,0.00041095,30]
[325359087,1714750252066,-500.0,0.00041095,30]
[325359089,1714750252078,-500.0,0.00041095,30]
[325359092,1714750252089,-500.0,0.00041095,30]
[325359094,1714750252100,-500.0,0.00041095,30]
[325359096,1714750252113,-662.2,0.00041095,30]
[325359125,1714750252407,-500.0,0.00041095,30]
[325359128,1714750252419,-1464.57,0.00041095,30]
[325359130,1714750252429,-500.0,0.00041095,30]
[325359131,1714750252440,-17756.81,0.00041095,30]
[325359134,1714750252450,-500.0,0.00041095,30]
[325359136,1714750252460,-500.0,0.00041095,30]
[325359138,1714750252470,-500.0,0.00041095,30]
[325359140,1714750252480,-500.0,0.00041095,30]
[325359142,1714750252491,-6908.26,0.00041095,30]
[325359144,1714750252501,-502.23950545,0.00041095,30]
[325359146,1714750252511,-964.13,0.00041095,30]
[325359148,1714750252520,-500.0,0.00041095,30]
[325359150,1714750252530,-1259.25,0.00041095,30]
[325359152,1714750252540,-6242.41,0.00041095,30]
[325359154,1714750252549,-2848.2,0.00041095,30]
[325359156,1714750252559,-500.0,0.00041095,30]
[325359158,1714750252569,-500.0,0.00041095,30]
[325359160,1714750252579,-1648.31,0.00041095,30]
[325359162,1714750252589,-500.0,0.00041095,30]
[325359164,1714750252598,-784.29,0.00041095,30]
[325359166,1714750252608,-500.0,0.00041095,30]
[325359168,1714750252619,-500.0,0.00041095,30]
[325359170,1714750252629,-15003.45,0.00041095,30]
[325359172,1714750252639,-500.0,0.00041095,30]
[325359174,1714750252649,-500.0,0.00041095,30]
[325359176,1714750252659,-500.0,0.00041095,30]
[325359178,1714750252669,-500.0,0.00041095,30]
[325359180,1714750252679,-1086.49,0.00041095,30]
[325359182,1714750252690,-500.0,0.00041095,30]
[325359184,1714750252699,-500.0,0.00041095,30]
[325359186,1714750252708,-502.55096841,0.00041095,30]
[325359188,1714750252720,-2820.67,0.00041095,30]
[325359190,1714750252730,-906.91,0.00041095,30]
[325359193,1714750252740,-500.0,0.00041095,30]
[325359195,1714750252750,-500.0,0.00041095,30]
[325359197,1714750252760,-500.0,0.00041095,30]
[325359199,1714750252770,-3015.16,0.00041095,30]
[325359200,1714750252779,-500.0,0.00041095,30]
[325359202,1714750252789,-500.0,0.00041095,30]
[325359205,1714750252799,-4252.65,0.00041095,30]
[325359206,1714750252808,-500.0,0.00041095,30]
[325359209,1714750252818,-4712.7,0.00041095,30]
[325359211,1714750252828,-500.0,0.00041095,30]
[325359213,1714750252838,-1551.13,0.00041095,30]
[325359215,1714750252848,-965.57,0.00041095,30]
[325359217,1714750252857,-500.0,0.00041095,30]
[325359218,1714750252867,-22542.35,0.00041095,30]
[325359221,1714750252876,-500.0,0.00041095,30]
[325359223,1714750252886,-748.64,0.00041095,30]
[325359225,1714750252896,-1044.46,0.00041095,30]
[325359226,1714750252905,-505.26288828,0.00041095,30]
[325359229,1714750252915,-500.0,0.00041095,30]
[325359231,1714750252925,-500.0,0.00041095,30]
[325359233,1714750252935,-1716.44,0.00041095,30]
[325359235,1714750252944,-1423.22,0.00041095,30]
[325359237,1714750252954,-4392.18,0.00041095,30]
[325359239,1714750252963,-1397.38,0.00041095,30]
[325359241,1714750252973,-500.0,0.00041095,30]
[325359243,1714750252983,-1409.51,0.00041095,30]
[325359245,1714750252993,-500.0,0.00041095,30]
[325359246,1714750253003,-6889.18,0.00041095,30]
[325359249,1714750253013,-500.0,0.00041095,30]
[325359250,1714750253024,-500.0,0.00041095,30]
[325359252,1714750253034,-500.0,0.00041095,30]
[325359254,1714750253044,-500.0,0.00041095,30]
[325359257,1714750253054,-500.0,0.00041095,30]
[325359259,1714750253063,-766.32,0.00041095,30]
[325359261,1714750253073,-1442.91,0.00041095,30]
[325359263,1714750253082,-3873.73,0.00041095,30]
[325359265,1714750253092,-56210.12,0.00041095,30]
[325359267,1714750253101,-1349.73,0.00041095,30]
[325359269,1714750253110,-500.0,0.00041095,30]
[325359271,1714750253120,-500.0,0.00041095,30]
[325359273,1714750253130,-1745.07,0.00041095,30]
[325359275,1714750253139,-500.0,0.00041095,30]
[325359277,1714750253148,-4753.26,0.00041095,30]
[325359279,1714750253158,-2473.8,0.00041095,30]
[325359281,1714750253167,-500.0,0.00041095,30]
[325359283,1714750253177,-500.0,0.00041095,30]
[325359285,1714750253187,-5020.18,0.00041095,30]
[325359287,1714750253202,-500.0,0.00041095,30]
[325359289,1714750253211,-626.54,0.00041095,30]
[325359291,1714750253220,-1405.03,0.00041095,30]
[325359293,1714750253230,-500.0,0.00041095,30]
[325359294,1714750253240,-500.0,0.00041095,30]
[325359296,1714750253250,-1183.15,0.00041095,30]
[325359298,1714750253260,-500.0,0.00041095,30]
[325359301,1714750253270,-1008.18,0.00041095,30]
[325359303,1714750253281,-1908.55,0.00041095,30]
[325359305,1714750253293,-3122.54,0.00041095,30]
[325359307,1714750253304,-500.0,0.00041095,30]
[325359309,1714750253314,-500.0,0.00041095,30]
[325359311,1714750253323,-500.0,0.00041095,30]
[325359313,1714750253332,-500.0,0.00041095,30]
[325359315,1714750253343,-2964.03,0.00041095,30]
[325359317,1714750253352,-2710.39,0.00041095,30]
[325359319,1714750253361,-1962.77,0.00041095,30]
[325359321,1714750253371,-1398.69,0.00041095,30]
[325359323,1714750253381,-4559.07314869,0.00041095,30]
[325359328,1714750253420,-20766.94685131,0.00041095,30]
[325359330,1714750253430,-500.0,0.00041095,30]
[325359332,1714750253439,-619.38,0.00041095,30]
[325359334,1714750253448,-1745.22,0.00041095,30]
[325359336,1714750253457,-3808.92,0.00041095,30]
[325359338,1714750253467,-21410.11,0.00041095,30]
[325359340,1714750253476,-500.0,0.00041095,30]
[325359342,1714750253486,-572.94,0.00041095,30]
[325359344,1714750253494,-500.0,0.00041095,30]
[325359346,1714750253504,-1624.67,0.00041095,30]
[325359348,1714750253513,-500.0,0.00041095,30]
[325359350,1714750253522,-500.0,0.00041095,30]
[325359352,1714750253532,-544.43,0.00041095,30]
[325359354,1714750253542,-1325.02,0.00041095,30]
[325359356,1714750253551,-500.0,0.00041095,30]
[325359358,1714750253560,-1587.82,0.00041095,30]
[325359360,1714750253569,-500.0,0.00041095,30]
[325359362,1714750253579,-3346.42,0.00041095,30]
[325359364,1714750253589,-2875.64,0.00041095,30]
[325359366,1714750253598,-4095.06,0.00041095,30]
[325359368,1714750253607,-940.4,0.00041095,30]
[325359370,1714750253616,-12229.4,0.00041095,30]
[325359372,1714750253625,-1261.15,0.00041095,30]
[325359374,1714750253635,-739.11,0.00041095,30]
[325359376,1714750253644,-1092.44,0.00041095,30]
[325359378,1714750253654,-502.94942627,0.00041095,30]
[325359380,1714750253663,-1792.86,0.00041095,30]
[325359382,1714750253673,-728.28,0.00041095,30]
[325359384,1714750253683,-500.0,0.00041095,30]
[325359386,1714750253693,-13165.87,0.00041095,30]
[325359388,1714750253703,-500.0,0.00041095,30]
[325359390,1714750253712,-986.43,0.00041095,30]
[325359392,1714750253722,-200.54885542,0.00041095,30]
[325359394,1714750253733,-2249.5,0.00041095,30]
[325359396,1714750253743,-500.0,0.00041095,30]
[325359398,1714750253752,-500.0,0.00041095,30]
[325359400,1714750253762,-5287.59,0.00041095,30]
[325359402,1714750253771,-4614.15,0.00041095,30]
[325359404,1714750253781,-2560.39,0.00041095,30]
[325359406,1714750253790,-899.77,0.00041095,30]
[325359408,1714750253799,-2000.99,0.00041095,30]
[325359410,1714750253809,-500.0,0.00041095,30]
[325359413,1714750253820,-500.0,0.00041095,30]
[325359414,1714750253829,-5400.4,0.00041095,30]
[325359417,1714750253839,-500.0,0.00041095,30]
[325359419,1714750253849,-2972.95,0.00041095,30]
[325359421,1714750253859,-11166.26,0.00041095,30]
[325359423,1714750253868,-3284.52,0.00041095,30]
[325359425,1714750253878,-500.0,0.00041095,30]
[325359427,1714750253887,-980.41,0.00041095,30]
[325359429,1714750253896,-929.31,0.00041095,30]
[325359431,1714750253905,-5013.46,0.00041095,30]
[325359433,1714750253915,-500.0,0.00041095,30]
[325359435,1714750253926,-500.0,0.00041095,30]
[325359437,1714750253936,-2400.52,0.00041095,30]
[325359439,1714750253946,-3390.98,0.00041095,30]
[325359441,1714750253956,-500.0,0.00041095,30]
[325359443,1714750253966,-807.49,0.00041095,30]
[325359445,1714750253976,-700.98,0.00041095,30]
[325359447,1714750253987,-636.49,0.00041095,30]
[325359449,1714750253997,-500.0,0.00041095,30]
[325359451,1714750254006,-1604.48,0.00041095,30]
[325359453,1714750254015,-7289.34,0.00041095,30]
[325359455,1714750254025,-1995.38,0.00041095,30]
[325359457,1714750254035,-500.0,0.00041095,30]
[325359459,1714750254044,-1070.49,0.00041095,30]
[325359461,1714750254054,-979.7,0.00041095,30]
[325359463,1714750254064,-500.0,0.00041095,30]
[325359465,1714750254074,-2867.42,0.00041095,30]
[325359467,1714750254083,-4170.39,0.00041095,30]
[325359469,1714750254092,-3590.43,0.00041095,30]
[325359471,1714750254102,-236.45338235,0.00041095,30]
[325359473,1714750254112,-3300.92,0.00041095,30]
[325359475,1714750254121,-722.65,0.00041095,30]
[325359477,1714750254131,-4711.13,0.00041095,30]
[325359479,1714750254141,-500.0,0.00041095,30]
[325359480,1714750254150,-2780.38,0.00041095,30]
[325359481,1714750254160,-1180.86,0.00041095,30]
[325359482,1714750254170,-500.0,0.00041095,30]
[325359483,1714750254179,-500.0,0.00041095,30]
[325359484,1714750254189,-3776.76,0.00041095,30]
[325359485,1714750254199,-1960.03,0.00041095,30]
[325359486,1714750254209,-500.0,0.00041095,30]
[325359487,1714750254218,-1705.06,0.00041095,30]
[325359488,1714750254228,-500.0,0.00041095,30]
[325359489,1714750254237,-500.0,0.00041095,30]
[325359491,1714750254248,-3013.54,0.00041095,30]
[325359493,1714750254258,-3143.02,0.00041095,30]
[325359495,1714750254267,-3783.2,0.00041095,30]
[325359497,1714750254276,-840.75,0.00041095,30]
[325359499,1714750254291,-500.0,0.00041095,30]
[325359501,1714750254301,-500.0,0.00041095,30]
[325359503,1714750254311,-1449.14,0.00041095,30]
[325359505,1714750254320,-9296.61,0.00041095,30]
[325359507,1714750254331,-4897.16,0.00041095,30]
[325359509,1714750254340,-500.0,0.00041095,30]
[325359511,1714750254350,-3128.66,0.00041095,30]
[325359513,1714750254360,-500.0,0.00041095,30]
[325359515,1714750254371,-500.0,0.00041095,30]
[325359517,1714750254380,-500.0,0.00041095,30]
[325359519,1714750254390,-2023.33,0.00041095,30]
[325359521,1714750254400,-704.47,0.00041095,30]
[325359523,1714750254410,-500.0,0.00041095,30]
[325359525,1714750254419,-11102.55,0.00041095,30]
[325359527,1714750254428,-7691.0,0.00041095,30]
[325359529,1714750254437,-500.0,0.00041095,30]
[325359531,1714750254447,-500.0,0.00041095,30]
[325359533,1714750254456,-736.81,0.00041095,30]
[325359535,1714750254465,-500.0,0.00041095,30]
[325359537,1714750254475,-505.0630793,0.00041095,30]
[325359539,1714750254484,-6374.98,0.00041095,30]
[325359541,1714750254494,-500.0,0.00041095,30]
[325359543,1714750254503,-1884.78,0.00041095,30]
[325359545,1714750254513,-1717.62,0.00041095,7]
[325359547,1714750254523,-660.35,0.00041095,30]
[325359549,1714750254534,-1478.62,0.00041095,30]
[325359552,1714750254544,-513.313704,0.00041095,30]
[325359554,1714750254554,-500.0,0.00041095,30]
[325359555,1714750254563,-10510.47,0.00041095,30]
[325359557,1714750254572,-7330.14,0.00041095,30]
[325359559,1714750254582,-500.0,0.00041095,30]
[325359562,1714750254592,-2304.48,0.00041095,30]
[325359563,1714750254601,-500.0,0.00041095,30]
[325359566,1714750254612,-2368.89,0.00041095,30]
[325359568,1714750254621,-500.0,0.00041095,120]
[325359570,1714750254631,-2696.42,0.00041095,30]
[325359572,1714750254641,-500.0,0.00041095,30]
[325359574,1714750254650,-1449.9,0.00041095,30]
[325359575,1714750254660,-613.87,0.00041095,30]
[325359578,1714750254670,-500.0,0.00041095,30]
[325359580,1714750254681,-500.0,0.00041095,30]
[325359582,1714750254691,-321.00829821,0.00041095,30]
[325359584,1714750254702,-1000.0,0.00041095,2]
[325359586,1714750254712,-500.0,0.00041095,30]
[325359588,1714750254722,-2422.3,0.00041095,30]
[325359590,1714750254732,-500.0,0.00041095,30]
[325359601,1714750254832,-779.61,0.00041095,30]
[325359603,1714750254841,-732.91,0.00041095,30]
[325359605,1714750254851,-500.0,0.00041095,30]
[325359607,1714750254861,-4359.53,0.00041095,30]
[325359609,1714750254870,-500.0,0.00041095,30]
[325359611,1714750254880,-500.0,0.00041095,30]
[325359613,1714750254889,-501.83841527,0.00041095,30]
[325359615,1714750254899,-48214.89,0.00041095,30]
[325359617,1714750254908,-500.0,0.00041095,30]
[325359619,1714750254918,-1694.46,0.00041095,30]
[325359621,1714750254927,-1126.32,0.00041095,30]
[325359623,1714750254936,-1099.82,0.00041095,30]
[325359625,1714750254946,-1211.13,0.00041095,30]
[325359627,1714750254956,-1976.48,0.00041095,30]
[325359629,1714750254965,-500.0,0.00041095,30]
[325359631,1714750254976,-1510.34,0.00041095,30]
[325359633,1714750254987,-699.91,0.00041095,30]
[325359635,1714750254997,-2698.36,0.00041095,30]
[325359637,1714750255007,-12156.84,0.00041095,30]
[325359639,1714750255016,-6427.79,0.00041095,30]
[325359641,1714750255027,-1161.27,0.00041095,30]
[325359643,1714750255036,-500.0,0.00041095,30]
[325359645,1714750255047,-2286.37,0.00041095,30]
[325359647,1714750255056,-939.37,0.00041095,30]
[325359649,1714750255065,-13608.33,0.00041095,30]
[325359651,1714750255075,-1711.78,0.00041095,30]
[325359653,1714750255084,-1069.01,0.00041095,30]
[325359655,1714750255093,-7432.21,0.00041095,30]
[325359657,1714750255102,-965.66,0.00041095,30]
[325359659,1714750255112,-586.61,0.00041095,30]
[325359661,1714750255121,-1303.18,0.00041095,30]
[325359663,1714750255130,-3327.82,0.00041095,30]
[325359665,1714750255139,-1131.58,0.00041095,30]
[325359667,1714750255149,-1376.07,0.00041095,30]
[325359669,1714750255158,-500.0,0.00041095,30]
[325359671,1714750255167,-500.0,0.00041095,30]
[325359673,1714750255178,-669.49,0.00041095,30]
[325359675,1714750255187,-500.0,0.00041095,30]
[325359677,1714750255196,-11140.97,0.00041095,30]
[325359679,1714750255205,-991.19,0.00041095,30]
[325359681,1714750255214,-908.0,0.00041095,30]
[325359683,1714750255224,-500.0,0.00041095,30]
[325359685,1714750255233,-157.0,0.00041096,2]
[325359687,1714750255250,-632.75341302,0.00041131,30]
[325359689,1714750255259,-179.20149184,0.00041269,2]
[325359691,1714750255268,-334.11868226,0.00041291,30]